fUSD/lending_fUSD_20241122
["ID","MTS","AMOUNT","RATE_DAILY","PERIOD"]
[342985670,1732255847004,-500.0,0.00062999,120]
[342985671,1732255847013,-500.0,0.00062999,120]
[342985672,1732255847023,-500.0,0.00062999,120]
[342985673,1732255847032,-500.0,0.00062999,120]
[342985674,1732255847041,-500.0,0.00062999,120]
[342985675,1732255847050,-477.13234151,0.00062999,120]
[342985676,1732255847060,-500.0,0.00062999,120]
[342985677,1732255847069,-500.0,0.00062999,120]
[342985678,1732255847078,-500.0,0.00062999,120]
[342985679,1732255847087,-500.0,0.00062999,120]
[342985680,1732255847096,-3516.37511579,0.00063,120]
[342985681,1732255847108,-168521.17758882,0.00063,36]
[342985682,1732255847117,-236.53546479,0.00063,61]
[342985683,1732255847126,-3924324.48239622,0.00063,120]
[342985684,1732255847218,-1179.32628687,0.00063,120]
[342985685,1732255847230,-1871.27716842,0.00063,120]
[342985686,1732255847246,-355.91479497,0.00062899,120]
[342985687,1732255847255,-1001.31063491,0.00063,120]
[342985688,1732255847266,-1417.04251441,0.00063,120]
[342985689,1732255847309,-138.54003267,0.00062999,120]
[342985690,1732255847321,-312.43069689,0.00062999,120]
[342985691,1732255847330,-10234.67196343,0.00063,120]
[342985692,1732255847342,-38680.9163621,0.00063,120]
[342985693,1732255847353,-281.55,0.00063,120]
[342985694,1732255847366,-381.33465368,0.00063,120]
[342985695,1732255847378,-1470.8043,0.00063,120]
[342985696,1732255847401,-500.0,0.00061789,2]
[342985697,1732255847410,-505.6653974,0.00062036,2]
[342985698,1732255847419,-1173.9775325,0.00063,120]
[342985699,1732255847431,-6995.58063436,0.00063,120]
[342985700,1732255847442,-453.8912,0.00063,120]
[342985701,1732255847454,-657.44734233,0.00063,120]
[342985702,1732255847465,-2419.950321,0.00063,120]
[342985703,1732255847485,-500.74,0.00061789,120]
[342985704,1732255847494,-500.0,0.00061789,120]
[342985705,1732255847503,-12899.47492254,0.00063,120]
[342985706,1732255847530,-651.02000018,0.00063,120]
[342985707,1732255847541,-302.55729824,0.00063,120]
[342985708,1732255847553,-2511.15745482,0.00063,120]
[342985709,1732255847578,-500.0,0.00061789,120]
[342985710,1732255847588,-500.0,0.00061789,120]
[342985711,1732255847598,-250132.95097213,0.00063,120]
[342985712,1732255847609,-628.1,0.00063,30]
[342985713,1732255847618,-500.0,0.00063,36]
[342985714,1732255847627,-500.0,0.00063,36]
[342985715,1732255847637,-533.26546539,0.00063,36]
[342985716,1732255847646,-156.955624,0.00063,120]
[342985717,1732255847655,-8451.46649707,0.00063,120]
[342985718,1732255847665,-208.896034,0.00063,120]
[342985719,1732255847674,-500.0,0.00063,120]
[342985720,1732255847684,-218.29338,0.00063,120]
[342985721,1732255847693,-151.000001,0.00063,120]
[342985722,1732255847702,-218.29338,0.00063,120]
[342985723,1732255847711,-151.0,0.00063,120]
[342985724,1732255847720,-151.0,0.00063,120]
[342985725,1732255847729,-151.0,0.00063,120]
[342985726,1732255847738,-151.0,0.00063,120]
[342985727,1732255847747,-545.326724,0.00063,120]
[342985728,1732255847756,-545.326724,0.00063,120]
[342985729,1732255847766,-160.25,0.00063,120]
[342985730,1732255847775,-151.0,0.00063,120]
[342985731,1732255847784,-500.0,0.00063013,120]
[342985732,1732255847795,-500.0,0.00063013,120]
[342985733,1732255847804,-500.0,0.00063013,120]
[342985734,1732255847813,-576.92213139,0.00063013,120]
[342985735,1732255847822,-1428.5333899,0.0006305,3]
[342985736,1732255847831,-573.7779473,0.00063093,3]
[342985737,1732255847840,-500.0,0.00063136,120]
[342985738,1732255847850,-831.96468,0.0006314,114]
[342985739,1732255847860,-500.0,0.00063273,120]
[342985740,1732255847869,-792.0,0.00063333,60]
[342985741,1732255847881,-321.24547995,0.00063377,120]
[342985742,1732255847890,-500.0,0.0006341,120]
[342985743,1732255847899,-500.0,0.00063547,120]
[342985744,1732255847908,-500.0,0.00063684,120]
[342985745,1732255847917,-831.96468,0.0006378,116]
[342985746,1732255847927,-500.0,0.00063821,120]
[342985747,1732255847936,-500.0,0.00063958,120]
[342985748,1732255847945,-792.0,0.0006396,60]
[342985749,1732255847954,-200.0,0.00064,120]
[342985750,1732255847964,-500.0,0.00064095,120]
[342985751,1732255847974,-500.0,0.00064232,120]
[342985752,1732255847983,-872.83,0.00064334,60]
[342985753,1732255847992,-500.0,0.00064369,120]
[342985754,1732255848001,-831.96468,0.000644,118]
[342985755,1732255848010,-500.0,0.00064506,120]
[342985756,1732255848019,-792.0,0.00064587,60]
[342985757,1732255848029,-603.88328719,0.00064643,120]
[342985758,1732255848039,-319.23747256,0.00064687,15]
[342985759,1732255848049,-1936.96711877,0.00064764,120]
[342985760,1732255848058,-12726.0,0.0006485,120]
[342985761,1732255848068,-573.7779473,0.00064956,4]
[342985762,1732255848078,-573.7779473,0.00064956,4]
[342985763,1732255848087,-573.7779473,0.00064956,4]
[342985764,1732255848096,-1303.5367183,0.00064956,4]
[342985765,1732255848106,-1178.5400466,0.00064956,4]
[342985766,1732255848117,-1053.543375,0.00064956,4]
[342985767,1732255848127,-27243.70588326,0.00065,60]
[342985768,1732255848138,-23020.43047441,0.00065,65]
[342985769,1732255848150,-25643.4058386,0.00065,65]
[342985770,1732255848161,-1133.14062852,0.00065,65]
[342985771,1732255848172,-4303.37873814,0.00065,65]
[342985772,1732255848184,-5977.56040135,0.00065,65]
[342985773,1732255848195,-647.24400268,0.00065,65]
[342985774,1732255848207,-6023.51949775,0.00065,65]
[342985775,1732255848219,-2657.80000004,0.00065,65]
[342985776,1732255848402,-0.93184262,0.00065,65]
[342985777,1732255848418,-500.0,0.00061789,120]
[342985778,1732255848427,-172685.13418507,0.00065,65]
[342985779,1732255848437,-831.96468,0.0006503,120]
[342985780,1732255848447,-161.48,0.00065069,120]
[342985781,1732255848457,-232.39,0.00065237,2]
[342985782,1732255848467,-299.9527354,0.00065242,120]
[342985783,1732255848477,-573.7779473,0.00065434,4]
[342985784,1732255848487,-928.5467034,0.00065434,4]
[342985785,1732255848497,-500.0,0.00065479,120]
[342985786,1732255848507,-500.0,0.00065479,120]
[342985787,1732255848517,-500.0,0.00065479,120]
[342985788,1732255848526,-500.0,0.00065479,120]
[342985789,1732255848537,-500.0,0.00065479,120]
[342985790,1732255848547,-500.0,0.00065479,120]
[342985791,1732255848557,-500.0,0.00065479,120]
[342985792,1732255848567,-500.0,0.00065479,120]
[342985793,1732255848577,-500.0,0.00065479,120]
[342985794,1732255848587,-500.0,0.00065479,120]
[342985795,1732255848598,-500.0,0.00065479,120]
[342985796,1732255848609,-500.0,0.00065479,120]
[342985797,1732255848619,-500.0,0.00065479,120]
[342985798,1732255848629,-489.98159747,0.00065479,120]
[342985799,1732255848639,-5102.99401212,0.000655,120]
[342985800,1732255848649,-44459.51265689,0.000655,120]
[342985801,1732255848759,-218.29338,0.000655,120]
[342985802,1732255848770,-218.29338,0.000655,120]
[342985803,1732255848780,-151.0,0.000655,120]
[342985804,1732255848790,-151.0,0.000655,120]
[342985805,1732255848800,-545.326724,0.000655,120]
[342985806,1732255848810,-545.326724,0.000655,120]
[342985807,1732255848820,-992.80831625,0.0006555,60]
[342985808,1732255848830,-700.26512816,0.00065593,28]
[342985809,1732255848839,-6000.0,0.00065696,120]
[342985810,1732255848849,-175.39044601,0.000657,30]
[342985811,1732255848861,-1007.0,0.000657,14]
[342985812,1732255848871,-500.0,0.00065739,120]
[342985813,1732255848881,-573.7779473,0.00065755,4]
[342985814,1732255848891,-803.5500318,0.00065755,4]
[342985815,1732255848901,-15159.99073811,0.000658,120]
[342985816,1732255848910,-154.47099503,0.000658,30]
[342985817,1732255848921,-646.0,0.000658,14]
[342985818,1732255848930,-300.0,0.00066,120]
[342985819,1732255848941,-899.99999901,0.00066,67]
[342985820,1732255848951,-2110.0,0.000661,30]
[342985821,1732255848961,-800.0,0.00066274,120]
[342985822,1732255848971,-800.0,0.00066274,120]
[342985823,1732255848982,-800.0,0.00066274,120]
[342985824,1732255848992,-800.0,0.00066274,120]
[342985825,1732255849003,-800.0,0.00066274,120]
[342985826,1732255849013,-800.0,0.00066274,120]
[342985827,1732255849023,-280.34,0.00066274,120]
[342985828,1732255849033,-200.0,0.00066278,120]
[342985829,1732255849042,-267.86768935,0.0006632,60]
[342985830,1732255849052,-150.0,0.00066341,60]
[342985831,1732255849063,-150.0,0.00066347,60]
[342985832,1732255849072,-150.0,0.00066348,60]
[342985833,1732255849083,-150.0,0.00066349,60]
[342985834,1732255849093,-150.0,0.00066357,60]
[342985835,1732255849104,-150.0,0.00066367,60]
[342985836,1732255849120,-150.0,0.00066369,60]
[342985837,1732255849136,-150.0,0.00066402,60]
[342985838,1732255849147,-150.0,0.00066407,60]
[342985839,1732255849157,-151.75898535,0.00066419,60]
[342985840,1732255849168,-150.0,0.00066421,60]
[342985841,1732255849179,-150.0,0.00066423,60]
[342985842,1732255849191,-150.0,0.00066427,60]
[342985843,1732255849202,-150.0,0.00066429,60]
[342985844,1732255849213,-150.0,0.00066433,60]
[342985845,1732255849225,-150.0,0.00066434,60]
[342985846,1732255849235,-150.0,0.00066438,60]
[342985847,1732255849246,-150.0,0.00066438,60]
[342985848,1732255849255,-150.0,0.00066441,60]
[342985849,1732255849265,-150.0,0.00066452,60]
[342985850,1732255849276,-150.0,0.00066466,60]
[342985851,1732255849287,-150.0,0.00066468,60]
[342985852,1732255849297,-150.0,0.00066481,60]
[342985853,1732255849307,-882.38513667,0.00066485,60]
[342985854,1732255849316,-150.0,0.00066487,60]
[342985855,1732255849327,-150.0,0.00066495,60]
[342985856,1732255849337,-158.0,0.000665,80]
[342985857,1732255849347,-150.0,0.00066507,60]
[342985858,1732255849360,-150.0,0.00066511,60]
[342985859,1732255849369,-150.0,0.00066516,60]
[342985860,1732255849379,-150.0,0.00066518,60]
[342985861,1732255849390,-150.0,0.00066522,60]
[342985862,1732255849401,-150.0,0.00066524,60]
[342985863,1732255849411,-150.0,0.00066533,60]
[342985864,1732255849421,-150.0,0.00066534,60]
[342985865,1732255849431,-150.0,0.00066541,60]
[342985866,1732255849442,-150.0,0.00066541,60]
[342985867,1732255849452,-150.0,0.00066564,60]
[342985868,1732255849462,-150.0,0.00066569,60]
[342985869,1732255849472,-150.0,0.00066572,60]
[342985870,1732255849482,-1000.0,0.00066574,2]
[342985871,1732255849492,-905.88829928,0.00066574,2]
[342985872,1732255849503,-150.0,0.00066574,60]
[342985873,1732255849513,-150.0,0.00066581,60]
[342985874,1732255849523,-150.0,0.00066582,60]
[342985875,1732255849534,-39400.98970009,0.000666,20]
[342985876,1732255849547,-1002.63569923,0.000666,20]
[342985877,1732255849559,-1231.79376139,0.000666,20]
[342985878,1732255849589,-29.44731749,0.000666,20]
[342985879,1732255849661,-178.586832,0.00054731,30]
[342985880,1732255849670,-178.586832,0.00056099,30]
[342985881,1732255849680,-178.586832,0.00057468,30]
[342985882,1732255849689,-564.62,0.00061789,120]
[342985883,1732255849699,-500.0,0.00061789,120]
[342985884,1732255849710,-275.69032595,0.000629,30]
[342985885,1732255849742,-1048.10777893,0.000629,30]
[342985886,1732255849752,-154.0,0.00063718,25]
[342985887,1732255849761,-90.85180803,0.000666,20]
[342985888,1732255849773,-450.69963234,0.000666,20]
[342985889,1732255849785,-2518.271208,0.000666,20]
[342985890,1732255849797,-296.043,0.000666,20]
[342985891,1732255849809,-543.72022652,0.000666,20]
[342985892,1732255849821,-700.506935,0.000666,20]
[342985893,1732255849832,-876.50297,0.000666,20]
[342985894,1732255849844,-23015.40015339,0.000666,20]
[342985899,1732256731101,-1307.6298334,0.000351,30]
[342985900,1732256748097,-902.94561546,0.000351,30]
[342985901,1732256748121,-84.43751968,0.00041096,2]
[342985902,1732256754520,628.35692897,0.00025,2]
[342985903,1732256825099,-77.55248032,0.00041096,2]
[342985904,1732256825121,-656.41095404,0.000498,120]
[342985905,1732256834092,-3803.31560837,0.000399,21]
[342985906,1732256839116,-1012.11502356,0.000399,21]
[342985907,1732256839271,-1559.76456001,0.000399,21]
[342985908,1732256839293,-2755.86561609,0.000498,120]
[342985909,1732256891441,410.87132282,0.00027,2]
[342985933,1732256917181,293.512153,0.00022,2]
[342985941,1732256950126,-17846.55878467,0.0004,20]
[342985942,1732256950147,-31709.42581417,0.0004,7]
[342985943,1732256950169,-500.0,0.00045,120]
[342985944,1732256950192,-2614.34462987,0.000498,120]
[342985945,1732256950213,-27830.0,0.000498,120]
[342985946,1732256950235,-10000.0,0.0005,30]
[342985947,1732256950261,-265.140117,0.00054731,30]
[342985948,1732256950283,-154.589909,0.00054731,30]
[342985949,1732256950306,-186.241527,0.00054731,30]
[342985950,1732256950332,-500.0,0.00054795,120]
[342985951,1732256950354,-265.140117,0.00055415,30]
[342985952,1732256950376,-186.241527,0.00055415,30]
[342985953,1732256950397,-265.140117,0.00056099,30]
[342985954,1732256950418,-186.241527,0.00056099,30]
[342985955,1732256950439,-265.140117,0.00056784,30]
[342985956,1732256950463,-186.241527,0.00056784,30]
[342985957,1732256950487,-926.99,0.00057,120]
[342985958,1732256950509,-236.76,0.00057465,2]
[342985959,1732256950532,-265.140117,0.00057468,30]
[342985960,1732256950559,-186.241527,0.00057468,30]
[342985961,1732256950581,-1926.5212,0.000575,120]
[342985962,1732256950607,-255.0,0.00058218,30]
[342985963,1732256950629,-250.0,0.00058277,120]
[342985964,1732256950651,-245.1978,0.00058681,30]
[342985965,1732256950672,-1852.42,0.00058858,2]
[342985966,1732256950695,-227.16,0.00059077,120]
[342985967,1732256950717,-1000.0,0.00059243,120]
[342985968,1732256950741,-162.7,0.00059296,120]
[342985969,1732256950762,-250.0,0.00059533,120]
[342985970,1732256950788,-250.0,0.00059556,120]
[342985971,1732256950809,-318.3958316,0.00059669,2]
[342985972,1732256950831,-6016.09277983,0.00059679,2]
[342985973,1732256953141,-884.05575337,0.00059679,2]
[342985978,1732256958141,-6658.92731661,0.00059679,2]
[342985979,1732256963087,-1438.25448364,0.00059679,2]
[342985980,1732256964087,-1367.77816,0.00059679,2]
[342985981,1732256966086,-980.0,0.00059679,2]
[342986009,1732257032074,-500.0,0.00054795,120]
[342986010,1732257032087,-500.0,0.00058306,2]
[342986011,1732257032101,-5837.22013891,0.000591,5]
[342986012,1732257032116,-18518.64808855,0.000591,5]
[342986013,1732257032224,-2320.96704111,0.000591,5]
[342986014,1732257032386,-9091.64329693,0.000591,5]
[342986015,1732257032399,-6180.35767815,0.000591,5]
[342986016,1732257032455,-58.07081276,0.000591,5]
[342986018,1732257032474,-137993.09294359,0.000591,5]
[342986020,1732257032484,-3556.90705641,0.00059679,2]
[342986026,1732257037763,-2997.98445014,0.00059679,2]
[342986027,1732257037773,-236.76,0.00059729,2]
[342986028,1732257037784,-249.03,0.00059805,30]
[342986029,1732257037793,-200.0,0.00059847,2]
[342986030,1732257037803,-150.99,0.0005999,120]
[342986031,1732257037813,-22137.53983049,0.0006,120]
[342986032,1732257037825,-8949.97502687,0.0006,120]
[342986033,1732257037836,-288.59,0.0006,120]
[342986034,1732257037928,-61596.97811906,0.0006,120]
[342986035,1732257037941,-1647.94999986,0.0006,120]
[342986036,1732257037974,-1099.05000008,0.0006,120]
[342986037,1732257037986,-710.89172499,0.0006,120]
[342986038,1732257038015,-2875.19938907,0.0006,120]
[342986039,1732257038051,-353.54,0.0006,120]
[342986040,1732257038066,-48558.01489085,0.0006,120]
[342986041,1732257038086,-279.36,0.0006,120]
[342986057,1732257039854,-998.00700176,0.0005999,2]
[342986058,1732257039867,-8804.56029688,0.0005999,2]
[342986059,1732257039877,-6741.34951824,0.0006,120]
[342986060,1732257039889,-1405.28875568,0.0006,120]
[342986061,1732257039901,-258.79,0.0006,120]
[342986062,1732257039949,-3257.17674697,0.0006,120]
[342986063,1732257039960,-1000.0,0.0006,120]
[342986064,1732257039972,-1831.91155358,0.0006,120]
[342986065,1732257040008,-471278.02093221,0.0006,120]
[342986066,1732257040020,-65230.86912491,0.0006,120]
[342986067,1732257040029,-154.48644214,0.0006,30]
[342986068,1732257040039,-547.27226294,0.00060101,28]
[342986069,1732257040048,-153.0,0.00060239,120]
[342986070,1732257040061,-153.0,0.00060239,120]
[342986071,1732257040071,-153.0,0.00060239,120]
[342986072,1732257040080,-500.0,0.00060273,120]
[342986073,1732257040089,-259.42,0.00060273,120]
[342986074,1732257040099,-500.0,0.00060273,120]
[342986075,1732257040109,-500.0,0.00060273,120]
[342986076,1732257040119,-500.0,0.00060273,120]
[342986077,1732257040128,-500.0,0.00060273,120]
[342986078,1732257040138,-500.0,0.00060273,120]
[342986079,1732257040147,-500.0,0.00060273,120]
[342986080,1732257040157,-500.0,0.00060273,120]
[342986081,1732257040167,-500.0,0.00060273,120]
[342986082,1732257040177,-500.0,0.00060273,120]
[342986083,1732257040186,-502.92,0.00060273,120]
[342986084,1732257040195,-500.0,0.00060273,120]
[342986085,1732257040206,-579.7,0.00060273,120]
[342986086,1732257040216,-500.0,0.00060273,120]
[342986087,1732257040225,-500.0,0.00060273,120]
[342986088,1732257040235,-205.71,0.00060273,120]
[342986089,1732257040245,-500.0,0.00060273,120]
[342986090,1732257040254,-508.21,0.00060273,120]
[342986091,1732257040264,-500.0,0.00060273,120]
[342986092,1732257040274,-500.0,0.00060273,120]
[342986093,1732257040283,-500.0,0.00060273,120]
[342986094,1732257040293,-500.0,0.00060273,120]
[342986095,1732257040303,-500.0,0.00060273,120]
[342986096,1732257040312,-401.81,0.00060273,120]
[342986097,1732257040322,-500.0,0.00060273,120]
[342986098,1732257040331,-452.13,0.00060341,2]
[342986099,1732257040341,-362.99,0.00060944,120]
[342986100,1732257040351,-762.8317,0.000614,2]
[342986101,1732257040361,-2149.5239,0.000614,2]
[342986102,1732257040370,-1087.48549898,0.000614,15]
[342986103,1732257040380,-2385.0,0.000614,2]
[342986104,1732257040389,-2500.0,0.000614,2]
[342986105,1732257040399,-501.25609492,0.00061473,15]
[342986106,1732257040408,-500.0,0.00061499,120]
[342986107,1732257040417,-500.0,0.00061499,120]
[342986108,1732257040427,-500.0,0.00061499,120]
[342986109,1732257040436,-500.0,0.00061499,120]
[342986110,1732257040446,-500.0,0.00061499,120]
[342986111,1732257040455,-500.0,0.00061499,120]
[342986112,1732257040464,-500.0,0.00061499,120]
[342986113,1732257040474,-500.0,0.00061499,120]
[342986114,1732257040483,-500.0,0.00061499,120]
[342986115,1732257040495,-500.0,0.00061499,120]
[342986116,1732257040505,-500.0,0.00061499,120]
[342986117,1732257040514,-625.88523305,0.00061499,120]
[342986118,1732257040524,-500.0,0.00061499,120]
[342986119,1732257040534,-500.0,0.00061499,120]
[342986120,1732257040544,-500.0,0.00061499,120]
[342986121,1732257040554,-500.0,0.00061499,120]
[342986122,1732257040563,-500.0,0.00061499,120]
[342986123,1732257040572,-500.0,0.00061499,120]
[342986124,1732257040582,-500.0,0.00061499,120]
[342986125,1732257040591,-500.0,0.00061499,120]
[342986126,1732257040603,-500.0,0.00061499,120]
[342986127,1732257040612,-500.0,0.00061499,120]
[342986128,1732257040622,-500.0,0.00061499,120]
[342986129,1732257040631,-563.68,0.00061499,120]
[342986130,1732257040640,-154.55052199,0.00061499,120]
[342986131,1732257040650,-500.0,0.00061499,120]
[342986132,1732257040660,-500.0,0.00061499,120]
[342986133,1732257040671,-500.0,0.00061499,120]
[342986134,1732257040681,-175.39921554,0.000615,30]
[342986135,1732257040693,-500.0,0.00061587,120]
[342986136,1732257040703,-500.0,0.00061587,120]
[342986137,1732257040713,-500.0,0.00061587,120]
[342986138,1732257040723,-500.0,0.00061587,120]
[342986139,1732257040732,-500.0,0.00061587,120]
[342986140,1732257040742,-500.0,0.00061587,120]
[342986141,1732257040751,-500.0,0.00061587,120]
[342986142,1732257040761,-500.0,0.00061587,120]
[342986143,1732257040771,-500.0,0.00061587,120]
[342986144,1732257040780,-500.0,0.00061587,120]
[342986145,1732257040790,-500.0,0.00061587,120]
[342986146,1732257040800,-500.0,0.00061587,120]
[342986147,1732257040810,-500.0,0.00061587,120]
[342986148,1732257040819,-500.0,0.00061587,120]
[342986149,1732257040829,-500.0,0.00061587,120]
[342986150,1732257040839,-500.0,0.00061587,120]
[342986151,1732257040850,-534.67,0.00061589,120]
[342986152,1732257040859,-500.0,0.00061589,120]
[342986153,1732257040869,-500.0,0.00061589,120]
[342986154,1732257040879,-500.0,0.00061589,120]
[342986155,1732257040888,-530.63,0.00061589,120]
[342986156,1732257040898,-500.0,0.00061589,120]
[342986157,1732257040907,-500.0,0.00061589,120]
[342986158,1732257040917,-500.0,0.00061589,120]
[342986159,1732257040926,-1500.0,0.00061589,120]
[342986160,1732257040936,-500.0,0.00061589,120]
[342986161,1732257040946,-500.0,0.00061589,120]
[342986162,1732257040956,-510.4782,0.00061589,2]
[342986163,1732257040966,-2500.0,0.00061589,120]
[342986164,1732257040975,-210.64024685,0.0006159,33]
[342986165,1732257040985,-1189.889,0.00061678,120]
[342986166,1732257040995,-164.13,0.00061678,120]
[342986167,1732257041005,-30000.0,0.00061685,120]
[342986168,1732257041015,-500.0,0.00061687,120]
[342986169,1732257041024,-500.0,0.00061687,120]
[342986170,1732257041034,-627.27,0.00061687,120]
[342986171,1732257041043,-500.0,0.00061687,120]
[342986172,1732257041052,-500.0,0.00061687,120]
[342986173,1732257041062,-623.27,0.00061687,120]
[342986174,1732257041071,-500.0,0.00061687,120]
[342986175,1732257041080,-500.0,0.00061687,120]
[342986176,1732257041090,-500.0,0.00061687,120]
[342986177,1732257041101,-500.0,0.00061687,120]
[342986178,1732257041110,-500.0,0.00061687,120]
[342986179,1732257041120,-366.32,0.00061687,120]
[342986180,1732257041130,-170.37,0.00061687,120]
[342986181,1732257041139,-235.3,0.00061687,120]
[342986182,1732257041149,-500.0,0.00061687,120]
[342986183,1732257041159,-500.0,0.00061687,120]
[342986184,1732257041168,-500.0,0.00061687,120]
[342986185,1732257041177,-1765.09708289,0.00061688,2]
[342986186,1732257041187,-500.0,0.00061688,120]
[342986187,1732257041197,-500.0,0.00061688,120]
[342986188,1732257041207,-500.0,0.00061688,120]
[342986189,1732257041217,-500.0,0.00061688,120]
[342986190,1732257041226,-500.0,0.00061688,120]
[342986191,1732257041235,-500.0,0.00061688,120]
[342986192,1732257041245,-500.0,0.00061688,120]
[342986193,1732257041254,-543.83,0.00061688,120]
[342986194,1732257041264,-500.0,0.00061688,120]
[342986195,1732257041273,-500.0,0.00061688,120]
[342986196,1732257041283,-500.0,0.00061688,120]
[342986197,1732257041293,-500.0,0.00061688,120]
[342986198,1732257041302,-500.0,0.00061688,120]
[342986199,1732257041311,-500.0,0.00061688,120]
[342986200,1732257041321,-500.0,0.00061688,120]
[342986201,1732257041331,-500.0,0.00061688,120]
[342986202,1732257041341,-500.0,0.00061688,120]
[342986203,1732257041353,-500.0,0.00061688,120]
[342986204,1732257041365,-500.0,0.00061688,120]
[342986205,1732257041375,-584.63,0.00061688,120]
[342986206,1732257041384,-500.0,0.00061688,120]
[342986207,1732257041394,-500.0,0.00061688,120]
[342986208,1732257041403,-500.0,0.00061688,120]
[342986209,1732257041412,-500.0,0.00061688,120]
[342986210,1732257041423,-500.0,0.00061688,120]
[342986211,1732257041432,-500.0,0.00061688,120]
[342986212,1732257041443,-500.0,0.00061688,120]
[342986213,1732257041452,-500.0,0.00061688,120]
[342986214,1732257041462,-501.7561406,0.00061688,120]
[342986215,1732257041471,-500.0,0.00061688,120]
[342986216,1732257041481,-500.0,0.00061688,120]
[342986217,1732257041491,-612.43,0.00061688,120]
[342986218,1732257041503,-500.0,0.00061688,120]
[342986219,1732257041512,-500.0,0.00061688,120]
[342986220,1732257041522,-502.87985192,0.00061688,120]
[342986221,1732257041531,-644.75,0.00061688,120]
[342986222,1732257041543,-500.0,0.00061688,120]
[342986223,1732257041552,-500.0,0.00061688,120]
[342986224,1732257041562,-492.1412243,0.00061688,120]
[342986225,1732257041572,-500.0,0.00061688,120]
[342986226,1732257041581,-500.0,0.00061688,120]
[342986227,1732257041591,-500.0,0.00061688,120]
[342986228,1732257041601,-500.0,0.00061688,120]
[342986229,1732257041611,-501.10916262,0.00061688,120]
[342986230,1732257041621,-500.0,0.00061688,120]
[342986231,1732257041631,-500.0,0.00061688,120]
[342986232,1732257041641,-501.56424775,0.00061688,120]
[342986233,1732257041651,-500.15421818,0.00061688,120]
[342986234,1732257041661,-500.0,0.00061688,120]
[342986235,1732257041671,-500.0,0.00061688,120]
[342986236,1732257041680,-502.56233715,0.00061688,120]
[342986237,1732257041690,-524.45569986,0.00061688,120]
[342986238,1732257041699,-500.0,0.00061688,120]
[342986239,1732257041709,-500.0,0.00061688,120]
[342986240,1732257041718,-500.0,0.00061688,120]
[342986241,1732257041728,-500.0,0.00061688,120]
[342986242,1732257041738,-503.60270848,0.00061688,120]
[342986243,1732257041748,-500.0,0.00061688,120]
[342986244,1732257041758,-500.0,0.00061688,120]
[342986245,1732257041767,-500.0,0.00061688,120]
[342986246,1732257041778,-500.0,0.00061688,120]
[342986247,1732257041788,-504.06406713,0.00061688,120]
[342986248,1732257041797,-500.0,0.00061688,120]
[342986249,1732257041807,-500.0,0.00061688,120]
[342986250,1732257041816,-500.0,0.00061688,120]
[342986251,1732257041826,-498.22354325,0.00061688,120]
[342986252,1732257041835,-500.0,0.00061688,120]
[342986253,1732257041844,-500.0,0.00061688,120]
[342986254,1732257041854,-502.19109576,0.00061688,120]
[342986255,1732257041863,-500.0,0.00061688,120]
[342986256,1732257041872,-501.38380737,0.00061688,120]